fUST/lending_fUST_20250904
["ID","MTS","AMOUNT","RATE_DAILY","PERIOD"]
[383516413,1756968654210,-151.0,0.0001399,2]
[383516414,1756968654219,-151.0,0.0001399,2]
[383516416,1756968654228,-151.0,0.0001399,2]
[383516418,1756968654241,-262.080704,0.0001399,2]
[383516420,1756968654250,-151.0,0.0001399,2]
[383516422,1756968654260,-151.0,0.0001399,2]
[383516424,1756968654269,-151.0,0.0001399,2]
[383516427,1756968654279,-151.0,0.0001399,2]
[383516429,1756968654288,-151.0,0.0001399,2]
[383516430,1756968654300,-160.592448,0.0001399,2]
[383516432,1756968654309,-160.592448,0.0001399,2]
[383516435,1756968654319,-160.592448,0.0001399,2]
[383516436,1756968654328,-160.592448,0.0001399,2]
[383516438,1756968654337,-151.0,0.0001399,2]
[383516441,1756968654346,-301.03106,0.0001399,2]
[383516442,1756968654356,-151.0,0.0001399,2]
[383516445,1756968654366,-301.03106,0.0001399,2]
[383516446,1756968654376,-151.0,0.0001399,2]
[383516448,1756968654385,-301.03106,0.0001399,2]
[383516450,1756968654395,-328.518394,0.0001399,2]
[383516453,1756968654404,-301.031058,0.0001399,2]
[383516455,1756968654414,-328.518394,0.0001399,2]
[383516457,1756968654427,-328.518394,0.0001399,2]
[383516459,1756968654440,-328.518402,0.0001399,2]
[383516471,1756968654541,-247.971856,0.0001399,2]
[383516473,1756968654551,-247.971856,0.0001399,2]
[383516475,1756968654561,-247.971856,0.0001399,2]
[383516477,1756968654570,-247.971856,0.0001399,2]
[383516479,1756968654580,-330.77135,0.0001399,2]
[383516481,1756968654589,-330.77135,0.0001399,2]
[383516483,1756968654599,-330.77135,0.0001399,2]
[383516485,1756968654608,-330.771359,0.0001399,2]
[383516487,1756968654618,-151.0,0.0001399,2]
[383516489,1756968654627,-151.0,0.0001399,2]
[383516491,1756968654637,-887.500145,0.0001399,2]
[383516493,1756968654646,-887.500145,0.0001399,2]
[383516495,1756968654656,-887.500145,0.0001399,2]
[383516497,1756968654665,-887.500137,0.0001399,2]
[383516499,1756968654675,-151.0,0.0001399,2]
[383516501,1756968654684,-151.0,0.0001399,2]
[383516503,1756968654694,-151.0,0.0001399,2]
[383516505,1756968654703,-151.0,0.0001399,2]
[383516507,1756968654712,-151.0,0.0001399,2]
[383516509,1756968654722,-151.0,0.0001399,2]
[383516511,1756968654732,-151.0,0.0001399,2]
[383516513,1756968654741,-151.0,0.0001399,2]
[383516515,1756968654751,-157.828789,0.0001399,2]
[383516517,1756968654761,-520.91,0.00014,2]
[383516519,1756968654770,-151.0,0.00014,2]
[383516521,1756968654780,-151.0,0.00014,2]
[383516523,1756968654790,-151.0,0.00014,2]
[383516525,1756968654799,-151.0,0.00014,2]
[383516528,1756968654809,-151.0,0.00014,2]
[383516530,1756968654819,-258.018048,0.00014,2]
[383516532,1756968654828,-206.775025,0.00014,2]
[383516534,1756968654838,-206.775025,0.00014,2]
[383516536,1756968654847,-206.775025,0.00014,2]
[383516538,1756968654856,-206.775025,0.00014,2]
[383516540,1756968654865,-151.0,0.00014,2]
[383516542,1756968654875,-151.0,0.00014,2]
[383516544,1756968654884,-195.138632,0.00014,2]
[383516546,1756968654893,-162.271564,0.00014,2]
[383516548,1756968654903,-151.0,0.00014,2]
[383516550,1756968654912,-151.0,0.00014,2]
[383516552,1756968654921,-1805.0,0.00014002,2]
[383516554,1756968654930,-160.0,0.00014002,2]
[383516556,1756968654939,-160.0,0.00014002,2]
[383516558,1756968654948,-160.0,0.00014002,2]
[383516560,1756968654957,-417.15472785,0.00014002,2]
[383516562,1756968654966,-160.0,0.00014002,2]
[383516564,1756968654976,-160.0,0.00014002,2]
[383516566,1756968654985,-160.0,0.00014002,2]
[383516568,1756968654994,-530.40833076,0.00014002,2]
[383516570,1756968655004,-217.5338025,0.00014002,2]
[383516572,1756968655013,-260.41666667,0.00014002,2]
[383516574,1756968655023,-232.93421481,0.00014002,2]
[383516576,1756968655032,-160.0,0.00014002,2]
[383516578,1756968655042,-846.4110323,0.00014002,2]
[383516580,1756968655051,-160.0,0.00014002,2]
[383516582,1756968655060,-160.0,0.00014002,2]
[383516584,1756968655069,-168.0,0.00014019,2]
[383516586,1756968655078,-151.0,0.00014032,2]
[383516588,1756968655088,-151.0,0.00014032,2]
[383516590,1756968655097,-3000.0,0.0001404,2]
[383516592,1756968655106,-153.0,0.00014055,2]
[383516594,1756968655116,-427.0,0.00014077,2]
[383516596,1756968655125,-168.0,0.00014087,2]
[383516598,1756968655134,-168.0,0.00014094,2]
[383516600,1756968655144,-151.0,0.000141,2]
[383516602,1756968655153,-2216.85382887,0.00014103,2]
[383516604,1756968655163,-168.0,0.00014104,2]
[383516606,1756968655172,-168.0,0.00014109,2]
[383516608,1756968655182,-168.0,0.00014135,2]
[383516610,1756968655191,-1000.0,0.00014146,2]
[383516612,1756968655200,-168.0,0.00014171,2]
[383516614,1756968655211,-168.0,0.00014186,2]
[383516617,1756968655221,-151.0,0.000142,2]
[383516619,1756968655230,-1436.22633992,0.0001424,2]
[383516620,1756968655241,-597.62198641,0.00014246,2]
[383516622,1756968655250,-198.0,0.00014246,2]
[383516625,1756968655260,-198.0,0.00014246,2]
[383516627,1756968655269,-151.0,0.00014246,2]
[383516629,1756968655278,-198.0,0.00014246,2]
[383516631,1756968655287,-500.0,0.00014246,2]
[383516633,1756968655296,-151.0,0.00014246,2]
[383516635,1756968655306,-455.85977161,0.00014246,2]
[383516637,1756968655316,-151.0,0.00014246,2]
[383516639,1756968655329,-151.0,0.00014246,2]
[383516641,1756968655339,-480.0,0.00014246,2]
[383516643,1756968655348,-151.319919,0.00014246,2]
[383516645,1756968655358,-480.0,0.00014246,2]
[383516647,1756968655367,-480.0,0.00014246,2]
[383516649,1756968655376,-480.0,0.00014246,2]
[383516651,1756968655385,-480.0,0.00014246,2]
[383516653,1756968655394,-480.0,0.00014246,2]
[383516655,1756968655404,-480.0,0.00014246,2]
[383516657,1756968655413,-480.0,0.00014246,2]
[383516659,1756968655423,-480.0,0.00014246,2]
[383516661,1756968655433,-609.16,0.00014246,2]
[383516663,1756968655447,-480.0,0.00014246,2]
[383516665,1756968655456,-480.0,0.00014246,2]
[383516667,1756968655465,-151.0,0.00014246,2]
[383516669,1756968655474,-480.0,0.00014246,2]
[383516671,1756968655485,-480.0,0.00014246,2]
[383516673,1756968655494,-485.00478162,0.00014246,2]
[383516675,1756968655503,-151.0,0.00014246,2]
[383516677,1756968655514,-480.0,0.00014246,2]
[383516679,1756968655525,-480.0,0.00014246,2]
[383516681,1756968655534,-480.0,0.00014246,2]
[383516683,1756968655544,-151.0,0.00014246,2]
[383516685,1756968655555,-151.0,0.00014246,2]
[383516687,1756968655564,-480.0,0.00014246,2]
[383516689,1756968655573,-151.0,0.00014246,2]
[383516691,1756968655582,-480.0,0.00014246,2]
[383516693,1756968655591,-206.775025,0.00014246,2]
[383516695,1756968655601,-206.775025,0.00014246,2]
[383516697,1756968655610,-206.775025,0.00014246,2]
[383516699,1756968655620,-480.0,0.00014246,2]
[383516701,1756968655629,-206.775021,0.00014246,2]
[383516703,1756968655639,-151.0,0.00014246,2]
[383516705,1756968655648,-151.0,0.00014246,2]
[383516707,1756968655658,-480.0,0.00014246,2]
[383516709,1756968655667,-480.0,0.00014246,2]
[383516711,1756968655677,-151.0,0.00014246,2]
[383516713,1756968655686,-151.0,0.00014246,2]
[383516715,1756968655695,-480.0,0.00014246,2]
[383516717,1756968655705,-480.0,0.00014246,2]
[383516719,1756968655715,-480.0,0.00014246,2]
[383516721,1756968655725,-480.0,0.00014246,2]
[383516723,1756968655735,-480.0,0.00014246,2]
[383516725,1756968655745,-1901.27,0.00014246,2]
[383516727,1756968655755,-480.0,0.00014246,2]
[383516729,1756968655764,-151.0,0.00014246,2]
[383516731,1756968655774,-151.0,0.00014246,2]
[383516733,1756968655783,-156.76357,0.00014246,2]
[383516735,1756968655792,-156.76357,0.00014246,2]
[383516737,1756968655803,-156.76357,0.00014246,2]
[383516739,1756968655813,-447.38878054,0.00014246,2]
[383516741,1756968655822,-156.763578,0.00014246,2]
[383516743,1756968655832,-284.40703272,0.00014246,2]
[383516745,1756968655841,-480.0,0.00014246,2]
[383516747,1756968655851,-319.6003917,0.00014246,2]
[383516749,1756968655860,-197.15603613,0.00014246,2]
[383516751,1756968655871,-480.0,0.00014246,2]
[383516754,1756968655881,-480.0,0.00014246,2]
[383516756,1756968655891,-480.0,0.00014246,2]
[383516758,1756968655902,-480.0,0.00014246,2]
[383516760,1756968655911,-376.04591281,0.00014246,2]
[383516762,1756968655920,-480.0,0.00014246,2]
[383516764,1756968655930,-398.32433585,0.00014246,2]
[383516765,1756968655939,-151.0,0.00014246,2]
[383516768,1756968655949,-151.0,0.00014246,2]
[383516770,1756968655958,-286.377505,0.00014246,2]
[383516772,1756968655968,-521.1728235,0.00014246,2]
[383516774,1756968655977,-480.0,0.00014246,2]
[383516776,1756968655987,-480.0,0.00014246,2]
[383516778,1756968655996,-480.0,0.00014246,2]
[383516780,1756968656007,-482.67254381,0.00014246,2]
[383516782,1756968656017,-480.0,0.00014246,2]
[383516784,1756968656026,-482.86235315,0.00014246,2]
[383516786,1756968656036,-480.0,0.00014246,2]
[383516788,1756968656045,-484.28782861,0.00014246,2]
[383516790,1756968656055,-480.0,0.00014246,2]
[383516792,1756968656064,-480.0,0.00014246,2]
[383516794,1756968656074,-151.0,0.00014246,2]
[383516796,1756968656084,-151.0,0.00014246,2]
[383516798,1756968656093,-480.0,0.00014246,2]
[383516800,1756968656103,-484.0630088,0.00014246,2]
[383516802,1756968656112,-151.0,0.00014246,2]
[383516804,1756968656121,-186.022817,0.00014246,2]
[383516806,1756968656130,-485.00117804,0.00014246,2]
[383516808,1756968656140,-480.0,0.00014246,2]
[383516809,1756968656149,-480.0,0.00014246,2]
[383516810,1756968656159,-487.21113198,0.00014246,2]
[383516811,1756968656168,-480.0,0.00014246,2]
[383516812,1756968656177,-480.0,0.00014246,2]
[383516813,1756968656186,-480.0,0.00014246,2]
[383516814,1756968656195,-480.0,0.00014246,2]
[383516815,1756968656204,-160.592448,0.00014246,2]
[383516816,1756968656213,-160.592448,0.00014246,2]
[383516817,1756968656223,-480.0,0.00014246,2]
[383516818,1756968656232,-160.592448,0.00014246,2]
[383516819,1756968656243,-160.592448,0.00014246,2]
[383516820,1756968656252,-480.0,0.00014246,2]
[383516821,1756968656261,-480.0,0.00014246,2]
[383516822,1756968656270,-563.13623985,0.00014246,2]
[383516828,1756968656279,-281.76286044,0.00014246,2]
[383516830,1756968656371,-480.0,0.00014246,2]
[383516832,1756968656381,-469.06027069,0.00014246,2]
[383516834,1756968656392,-480.0,0.00014246,2]
[383516836,1756968656402,-481.86313016,0.00014246,2]
[383516838,1756968656411,-480.0,0.00014246,2]
[383516840,1756968656421,-480.0,0.00014246,2]
[383516842,1756968656431,-480.0,0.00014246,2]
[383516844,1756968656445,-480.0,0.00014246,2]
[383516846,1756968656454,-480.0,0.00014246,2]
[383516848,1756968656464,-480.0,0.00014246,2]
[383516850,1756968656472,-480.0,0.00014246,2]
[383516852,1756968656481,-480.0,0.00014246,2]
[383516854,1756968656491,-608.49486906,0.00014246,2]
[383516856,1756968656500,-480.0,0.00014246,2]
[383516858,1756968656509,-480.0,0.00014246,2]
[383516860,1756968656519,-172.44,0.00014246,2]
[383516862,1756968656528,-574.78,0.00014246,2]
[383516864,1756968656537,-480.0,0.00014246,2]
[383516866,1756968656547,-603.53698211,0.00014246,2]
[383516868,1756968656556,-480.0,0.00014246,2]
[383516870,1756968656571,-485.19074899,0.00014246,2]
[383516872,1756968656580,-286.71208656,0.00014246,2]
[383516874,1756968656589,-480.0,0.00014246,2]
[383516876,1756968656598,-376.82846288,0.00014246,2]
[383516878,1756968656608,-480.0,0.00014246,2]
[383516880,1756968656617,-480.0,0.00014246,2]
[383516882,1756968656627,-480.0,0.00014246,2]
[383516884,1756968656636,-542.28,0.00014246,2]
[383516886,1756968656646,-483.2585807,0.00014246,2]
[383516889,1756968656656,-480.0,0.00014246,2]
[383516890,1756968656666,-480.0,0.00014246,2]
[383516893,1756968656676,-480.0,0.00014246,2]
[383516895,1756968656686,-480.0,0.00014246,2]
[383516896,1756968656695,-452.37536555,0.00014246,2]
[383516899,1756968656705,-612.79216025,0.00014246,2]
[383516900,1756968656714,-480.0,0.00014246,2]
[383516902,1756968656724,-489.80530334,0.00014246,2]
[383516904,1756968656732,-480.0,0.00014246,2]
[383516906,1756968656741,-480.0,0.00014246,2]
[383516908,1756968656751,-480.0,0.00014246,2]
[383516910,1756968656760,-480.0,0.00014246,2]
[383516912,1756968656769,-480.0,0.00014246,2]
[383516914,1756968656778,-488.99564334,0.00014246,2]
[383516916,1756968656788,-315.25606703,0.00014246,2]
[383516918,1756968656797,-480.0,0.00014246,2]
[383516920,1756968656807,-480.0,0.00014246,2]
[383516923,1756968656817,-498.85653554,0.00014246,2]
[383516925,1756968656826,-480.0,0.00014246,2]
[383516927,1756968656836,-368.31,0.00014246,2]
[383516928,1756968656845,-528.64,0.00014246,2]
[383516931,1756968656855,-486.27235671,0.00014246,2]
[383516933,1756968656864,-480.0,0.00014246,2]
[383516935,1756968656873,-480.0,0.00014246,2]
[383516937,1756968656882,-480.0,0.00014246,2]
[383516939,1756968656891,-189.62555355,0.00014246,2]
[383516941,1756968656900,-728.91,0.00014246,2]
[383516942,1756968656909,-480.0,0.00014246,2]
[383516945,1756968656921,-330.30823571,0.00014246,2]
[383516947,1756968656929,-480.0,0.00014246,2]
[383516949,1756968656938,-627.85185061,0.00014246,2]
[383516951,1756968656947,-480.0,0.00014246,2]
[383516953,1756968656956,-480.0,0.00014246,2]
[383516955,1756968656965,-480.0,0.00014246,2]
[383516957,1756968656975,-482.16234441,0.00014246,2]
[383516959,1756968656984,-480.0,0.00014246,2]
[383516961,1756968656993,-1443.68,0.00014246,2]
[383516963,1756968657004,-483.05135985,0.00014246,2]
[383516965,1756968657013,-480.0,0.00014246,2]
[383516967,1756968657023,-480.0,0.00014246,2]
[383516969,1756968657033,-480.0,0.00014246,2]
[383516971,1756968657043,-1343.21,0.00014246,2]
[383516973,1756968657053,-487.73288488,0.00014246,2]
[383516975,1756968657062,-480.0,0.00014246,2]
[383516977,1756968657072,-480.0,0.00014246,2]
[383516979,1756968657080,-480.0,0.00014246,2]
[383516981,1756968657090,-480.0,0.00014246,2]
[383516983,1756968657100,-905.83,0.00014246,2]
[383516985,1756968657109,-482.4478265,0.00014246,2]
[383516987,1756968657118,-480.0,0.00014246,2]
[383516989,1756968657127,-480.0,0.00014246,2]
[383516991,1756968657137,-480.0,0.00014246,2]
[383516993,1756968657146,-480.0,0.00014246,2]
[383516995,1756968657155,-480.0,0.00014246,2]
[383516997,1756968657164,-480.0,0.00014246,2]
[383516999,1756968657173,-1306.15,0.00014246,2]
[383517001,1756968657183,-480.0,0.00014246,2]
[383517003,1756968657192,-480.0,0.00014246,2]
[383517005,1756968657202,-480.0,0.00014246,2]
[383517007,1756968657213,-480.0,0.00014246,2]
[383517009,1756968657222,-480.0,0.00014246,2]
[383517011,1756968657231,-1562.29,0.00014246,2]
[383517013,1756968657244,-1092.88,0.00014246,2]
[383517015,1756968657254,-480.0,0.00014246,2]
[383517017,1756968657264,-480.0,0.00014246,2]
[383517019,1756968657274,-480.0,0.00014246,2]
[383517021,1756968657283,-480.0,0.00014246,2]
[383517023,1756968657294,-481.58264077,0.00014246,2]
[383517025,1756968657303,-512.44,0.00014246,2]
[383517027,1756968657314,-483.36630953,0.00014246,2]
[383517029,1756968657324,-480.0,0.00014246,2]
[383517031,1756968657334,-1168.82,0.00014246,2]
[383517033,1756968657343,-480.0,0.00014246,2]
[383517035,1756968657352,-480.0,0.00014246,2]
[383517037,1756968657362,-472.50194441,0.00014246,2]
[383517039,1756968657372,-480.0,0.00014246,2]
[383517041,1756968657381,-480.0,0.00014246,2]
[383517043,1756968657391,-480.0,0.00014246,2]
[383517045,1756968657401,-480.0,0.00014246,2]
[383517047,1756968657410,-732.38,0.00014246,2]
[383517049,1756968657420,-480.0,0.00014246,2]
[383517051,1756968657429,-480.0,0.00014246,2]
[383517053,1756968657445,-480.0,0.00014246,2]
[383517055,1756968657455,-480.0,0.00014246,2]
[383517058,1756968657464,-483.26218972,0.00014246,2]
[383517060,1756968657474,-1183.0,0.00014246,2]
[383517061,1756968657483,-480.0,0.00014246,2]
[383517064,1756968657494,-480.0,0.00014246,2]
[383517066,1756968657503,-983.2,0.00014246,2]
[383517068,1756968657514,-480.0,0.00014246,2]
[383517070,1756968657524,-480.0,0.00014246,2]
[383517072,1756968657533,-480.0,0.00014246,2]
[383517074,1756968657543,-604.93516955,0.00014246,2]
[383517076,1756968657552,-480.0,0.00014246,2]
[383517078,1756968657561,-480.0,0.00014246,2]
[383517080,1756968657570,-480.0,0.00014246,2]
[383517082,1756968657579,-228.6584885,0.00014246,2]
[383517084,1756968657588,-480.0,0.00014246,2]
[383517086,1756968657598,-480.0,0.00014246,2]
[383517088,1756968657608,-480.0,0.00014246,2]
[383517090,1756968657618,-480.0,0.00014246,2]
[383517092,1756968657627,-1913.82,0.00014246,2]
[383517094,1756968657637,-480.0,0.00014246,2]
[383517096,1756968657646,-480.0,0.00014246,2]
[383517098,1756968657655,-282.72858752,0.00014246,2]
[383517100,1756968657665,-480.0,0.00014246,2]
[383517102,1756968657675,-480.0,0.00014246,2]
[383517104,1756968657684,-3400.38,0.00014246,2]
[383517105,1756968657694,-815.86,0.00014246,2]
[383517107,1756968657704,-1527.81,0.00014246,2]
[383517109,1756968657713,-480.0,0.00014246,2]
[383517112,1756968657724,-698.08,0.00014246,2]
[383517114,1756968657734,-1500.0,0.00014268,2]
[383517116,1756968657744,-1500.0,0.00014268,2]
[383517118,1756968657754,-1500.0,0.00014268,2]
[383517119,1756968657767,-168.0,0.00014294,2]
[383517121,1756968657777,-168.0,0.00014322,2]
[383517124,1756968657787,-1201.50732318,0.00014327,2]
[383517125,1756968657798,-168.0,0.00014339,2]
[383517127,1756968657808,-427.0,0.00014351,2]
[383517130,1756968657818,-168.0,0.00014358,2]
[383517132,1756968657827,-168.0,0.00014366,2]
[383517134,1756968657836,-469.96145788,0.00014392,2]
[383517136,1756968657846,-168.0,0.00014398,2]
[383517138,1756968657855,-151.0,0.000144,2]
[383517140,1756968657864,-3000.0,0.0001441,2]
[383517142,1756968657874,-420.0,0.0001446,2]
[383517144,1756968657883,-1680.0,0.00014489,2]
[383517146,1756968657893,-151.0,0.000145,2]
[383517148,1756968657902,-245.41224727,0.0001452,2]
[383517150,1756968657912,-510.0,0.0001452,2]
[383517152,1756968657921,-198.0,0.0001452,2]
[383517154,1756968657930,-151.0,0.0001452,2]
[383517156,1756968657940,-151.0,0.0001452,2]
[383517158,1756968657949,-480.0,0.0001452,2]
[383517160,1756968657959,-480.0,0.0001452,2]
[383517162,1756968657969,-371.75094622,0.0001452,2]
[383517164,1756968657980,-480.0,0.0001452,2]
[383517175,1756968658073,-480.0,0.0001452,2]
[383517177,1756968658083,-480.0,0.0001452,2]
[383517179,1756968658093,-480.0,0.0001452,2]
[383517181,1756968658102,-480.0,0.0001452,2]
[383517183,1756968658111,-480.0,0.0001452,2]
[383517185,1756968658121,-609.16,0.0001452,2]
[383517187,1756968658131,-314.13192448,0.0001452,2]
[383517189,1756968658140,-480.0,0.0001452,2]
[383517191,1756968658149,-151.0,0.0001452,2]
[383517193,1756968658159,-439.34739395,0.0001452,2]
[383517195,1756968658168,-266.51658793,0.0001452,2]
[383517197,1756968658179,-151.0,0.0001452,2]
[383517199,1756968658188,-480.0,0.0001452,2]
[383517201,1756968658198,-546.30186287,0.0001452,2]
[383517203,1756968658207,-480.0,0.0001452,2]
[383517205,1756968658216,-151.0,0.0001452,2]
[383517207,1756968658225,-270.404566,0.0001452,2]
[383517209,1756968658235,-480.0,0.0001452,2]
[383517211,1756968658245,-480.0,0.0001452,2]
[383517213,1756968658254,-480.0,0.0001452,2]
[383517215,1756968658264,-480.0,0.0001452,2]
[383517217,1756968658274,-480.0,0.0001452,2]
[383517219,1756968658284,-480.0,0.0001452,2]
[383517221,1756968658293,-480.0,0.0001452,2]
[383517223,1756968658301,-480.0,0.0001452,2]
[383517225,1756968658311,-478.04534126,0.0001452,2]
[383517227,1756968658320,-1901.27,0.0001452,2]
[383517229,1756968658329,-480.0,0.0001452,2]
[383517231,1756968658338,-480.0,0.0001452,2]
[383517233,1756968658348,-480.0,0.0001452,2]
[383517235,1756968658357,-480.0,0.0001452,2]
[383517237,1756968658366,-540.53979437,0.0001452,2]
[383517239,1756968658375,-327.81443585,0.0001452,2]
[383517241,1756968658384,-284.46830244,0.0001452,2]
[383517243,1756968658393,-570.39137897,0.0001452,2]
[383517246,1756968658403,-281.03293658,0.0001452,2]
[383517248,1756968658413,-480.0,0.0001452,2]
[383517250,1756968658423,-267.03846745,0.0001452,2]
[383517252,1756968658433,-484.10742305,0.0001452,2]
[383517253,1756968658445,-480.0,0.0001452,2]
[383517255,1756968658454,-480.0,0.0001452,2]
[383517258,1756968658465,-332.1101865,0.0001452,2]
[383517260,1756968658474,-480.0,0.0001452,2]
[383517262,1756968658483,-480.0,0.0001452,2]
[383517264,1756968658493,-480.0,0.0001452,2]
[383517266,1756968658502,-480.0,0.0001452,2]
[383517268,1756968658514,-480.0,0.0001452,2]
[383517270,1756968658523,-579.75964523,0.0001452,2]
[383517272,1756968658532,-480.0,0.0001452,2]
[383517274,1756968658542,-480.0,0.0001452,2]
[383517276,1756968658551,-480.0,0.0001452,2]
[383517278,1756968658560,-480.0,0.0001452,2]
[383517280,1756968658570,-480.0,0.0001452,2]
[383517282,1756968658580,-480.0,0.0001452,2]
[383517284,1756968658589,-480.0,0.0001452,2]
[383517286,1756968658599,-480.0,0.0001452,2]
[383517288,1756968658608,-480.0,0.0001452,2]
[383517290,1756968658617,-480.0,0.0001452,2]
[383517292,1756968658626,-480.0,0.0001452,2]
[383517294,1756968658636,-485.31907194,0.0001452,2]
[383517296,1756968658645,-480.0,0.0001452,2]
[383517298,1756968658654,-480.0,0.0001452,2]
[383517300,1756968658663,-485.26854062,0.0001452,2]
[383517302,1756968658674,-222.62,0.0001452,2]
[383517304,1756968658683,-480.0,0.0001452,2]
[383517306,1756968658693,-485.26625021,0.0001452,2]
[383517308,1756968658702,-480.0,0.0001452,2]
[383517310,1756968658712,-480.0,0.0001452,2]
[383517312,1756968658721,-480.0,0.0001452,2]
[383517314,1756968658731,-485.58939709,0.0001452,2]
[383517316,1756968658740,-480.0,0.0001452,2]
[383517318,1756968658750,-485.3965692,0.0001452,2]
[383517320,1756968658761,-480.0,0.0001452,2]
[383517322,1756968658770,-480.0,0.0001452,2]
[383517324,1756968658780,-480.0,0.0001452,2]
[383517326,1756968658790,-480.0,0.0001452,2]
[383517328,1756968658800,-480.0,0.0001452,2]
[383517330,1756968658810,-444.67486494,0.0001452,2]
[383517332,1756968658819,-480.0,0.0001452,2]
[383517335,1756968658829,-480.0,0.0001452,2]
[383517337,1756968658838,-480.0,0.0001452,2]
[383517339,1756968658847,-528.64,0.0001452,2]
[383517341,1756968658856,-480.0,0.0001452,2]
[383517343,1756968658866,-480.0,0.0001452,2]
[383517345,1756968658875,-480.0,0.0001452,2]
[383517347,1756968658885,-728.91,0.0001452,2]
[383517349,1756968658894,-480.0,0.0001452,2]
[383517351,1756968658904,-480.0,0.0001452,2]
[383517353,1756968658913,-480.0,0.0001452,2]
[383517355,1756968658923,-480.0,0.0001452,2]
[383517357,1756968658932,-480.0,0.0001452,2]
[383517359,1756968658941,-480.0,0.0001452,2]
[383517361,1756968658951,-1443.68,0.0001452,2]
[383517363,1756968658960,-480.0,0.0001452,2]
[383517365,1756968658970,-275.66,0.0001452,2]
[383517367,1756968658980,-480.0,0.0001452,2]
[383517369,1756968658990,-1343.21,0.0001452,2]
[383517371,1756968658999,-480.0,0.0001452,2]
[383517373,1756968659008,-480.0,0.0001452,2]
[383517375,1756968659018,-480.0,0.0001452,2]
[383517377,1756968659027,-480.0,0.0001452,2]
[383517379,1756968659037,-905.83,0.0001452,2]
[383517381,1756968659046,-351.31932404,0.0001452,2]
[383517383,1756968659057,-480.0,0.0001452,2]
[383517385,1756968659067,-480.0,0.0001452,2]
[383517387,1756968659077,-480.0,0.0001452,2]
[383517389,1756968659087,-480.0,0.0001452,2]
[383517391,1756968659097,-480.0,0.0001452,2]
[383517393,1756968659107,-1306.15,0.0001452,2]
[383517395,1756968659116,-480.0,0.0001452,2]
[383517397,1756968659126,-480.0,0.0001452,2]
[383517399,1756968659135,-480.0,0.0001452,2]
[383517401,1756968659145,-480.0,0.0001452,2]
[383517403,1756968659154,-480.0,0.0001452,2]
[383517404,1756968659163,-1562.29,0.0001452,2]
[383517405,1756968659173,-1092.88,0.0001452,2]
[383517406,1756968659182,-480.0,0.0001452,2]
[383517407,1756968659192,-480.0,0.0001452,2]
[383517408,1756968659201,-480.0,0.0001452,2]
[383517409,1756968659211,-512.44,0.0001452,2]
[383517410,1756968659220,-480.0,0.0001452,2]
[383517411,1756968659229,-1168.82,0.0001452,2]
[383517412,1756968659240,-480.0,0.0001452,2]
[383517413,1756968659251,-480.0,0.0001452,2]
[383517414,1756968659261,-480.0,0.0001452,2]
[383517415,1756968659271,-485.13483368,0.0001452,2]